[Event "Slovakia Chess Open 2024"]
[Site "Modra"]
[Date "2024.03.01"]
[Round "1.12"]
[White "Veres, Alex"]
[Black "Novomeska, Karin"]
[Result "0-1"]
[ECO "B12"]
[WhiteElo "1584"]
[BlackElo "1929"]
[Annotator "RC"]
[PlyCount "54"]
[EventDate "2024.02.29"]
[EventType "swiss"]
[EventCountry "SVK"]
[SourceTitle "playchess.com"]
[Source "ChessBase"]
[SourceQuality "1"]
[TimeControl "5400+30"]

1. e4 {[%emt 0:00:05]} c6 {[%emt 0:00:04]} 2. d4 {[%emt 0:00:10]} d5 {[%emt 0:00:06]} 3. e5 {[%emt 0:00:12]} Bf5 {[%emt 0:00:44]} 4. c4 {[%emt 0:00:58]} e6 {[%emt 0:01:24]} 5. Nc3 {[%emt 0:01:15]} Nd7 {[%emt 0:06:06]} 6. Bd3 {[%emt 0:02:07]} Bxd3 {[%emt 0:09:09]} 7. Qxd3 {[%emt 0:00:10]} dxc4 {[%emt 0:04:34]} 8. Qxc4 {[%emt 0:00:25]} Ne7 {[%emt 0:02:11]} 9. Nf3 {[%emt 0:02:14]} Nb6 {[%emt 0:03:57]} 10. Qd3 {[%emt 0:01:18]} Ned5 {[%emt 0:05:31]} 11. Ne4 {[%emt 0:08:14]} Bb4+ {[%emt 0:05:33]} 12. Bd2 {[%emt 0:03:05]} Nf4 {[%emt 0:07:52]} 13. Qb3 {[%emt 0:11:27]} Bxd2+ {[%emt 0:11:52]} 14. Nexd2 {[%emt 0:00:33]} Nxg2+ {[%emt 0:00:22]} 15. Kf1 {[%emt 0:00:37]} Nf4 {[%emt 0:01:36]} 16. Rg1 {[%emt 0:01:44]} O-O {[%emt 0:00:39]} 17. Ne4 {[%emt 0:04:35]} Kh8 {[%emt 0:05:57]} 18. Rd1 {[%emt 0:09:47]} Nbd5 {[%emt 0:09:16]} 19. Nfg5 {[%emt 0:03:07]} Qe7 {[%emt 0:07:32]} 20. Qg3 {[%emt 0:12:13]} Qb4 {[%emt 0:04:01]} 21. Nd6 {[%emt 0:07:09]} g6 {[%emt 0:10:54]} 22. Qh4 {[%emt 0:19:33]} h5 {[%emt 0:00:33]} 23. Rg4 {[%emt 0:03:00]} Qa4 {[%emt 0:00:21]} 24. b3 {[%emt 0:01:59]} Qa6+ {[%emt 0:00:17]} 25. Kg1 {[%emt 0:00:23]} Qe2 {[%emt 0:00:47]} 26. Rf1 {[%emt 0:00:55]} Qxg4+ {[%emt 0:00:12]} 27. Qxg4 {[%emt 0:00:37]} hxg4 {[%emt 0:00:01]} 0-1

[Event "Slovakia Chess Open 2024"]
[Site "Modra"]
[Date "2024.03.01"]
[Round "1.13"]
[White "Kukla, Tomas"]
[Black "Rozboril, Alex"]
[Result "1-0"]
[ECO "D52"]
[WhiteElo "1864"]
[BlackElo "1563"]
[Annotator "NA RC"]
[PlyCount "79"]
[EventDate "2024.02.29"]
[EventType "swiss"]
[EventCountry "SVK"]
[SourceTitle "playchess.com"]
[Source "ChessBase"]
[SourceQuality "1"]
[TimeControl "5400+30"]

1. d4 {[%emt 0:00:07]} d5 {[%emt 0:00:36]} 2. c4 {[%emt 0:00:06]} c6 {[%emt 0:00:00]} 3. Nf3 {[%emt 0:00:25]} Nf6 {[%emt 0:00:00]} 4. Nc3 {[%emt 0:00:12]} e6 {[%emt 0:00:17]} 5. Bg5 {[%emt 0:00:28]} Bb4 {[%emt 0:00:50]} 6. Qc2 {[%emt 0:06:27]} Nbd7 {[%emt 0:03:23]} 7. e3 {[%emt 0:01:32]} O-O {[%emt 0:02:20]} 8. Bd3 {[%emt 0:00:19]} Qc7 {[%emt 0:02:11]} 9. O-O {[%emt 0:04:56]} b6 {[%emt 0:16:58]} 10. Rac1 {[%emt 0:03:54]} Bxc3 {[%emt 0:04:34]} 11. Qxc3 {[%emt 0:01:09]} Bb7 {[%emt 0:02:06]} 12. cxd5 {[%emt 0:02:16]} exd5 {[%emt 0:01:11]} 13. Qc2 {[%emt 0:04:26]} h6 {[%emt 0:02:34]} 14. Bf4 {[%emt 0:01:27]} Qd8 {[%emt 0:03:11]} 15. Qe2 {[%emt 0:05:24]} a5 {[%emt 0:13:56]} 16. h3 {[%emt 0:02:34]} Qe7 {[%emt 0:03:59]} 17. Nh2 {[%emt 0:04:48]} Rfc8 {[%emt 0:11:25]} 18. Ng4 {[%emt 0:01:38]} Nxg4 {[%emt 0:11:30]} 19. hxg4 {[%emt 0:02:27]} c5 {[%emt 0:02:25]} 20. Qf3 {[%emt 0:03:51]} Qf6 {[%emt 0:05:43]} 21. Bf5 {[%emt 0:02:35]} Qe7 {[%emt 0:02:35]} 22. Qh3 {[%emt 0:03:09]} Rc6 {[%emt 0:02:49]} 23. g5 {[%emt 0:01:25]} g6 {[%emt 0:04:04]} 24. Bxd7 {[%emt 0:00:23]} Bc8 {[%emt 0:01:19]} 25. Bxc8 {[%emt 0:00:39]} Raxc8 {[%emt 0:00:39]} 26. Qxh6 {[%emt 0:01:05]} Qf8 {[%emt 0:00:26]} 27. Qxf8+ {[%emt 0:00:27]} Kxf8 {[%emt 0:00:13]} 28. Be5 {[%emt 0:00:53]} cxd4 {[%emt 0:01:47]} 29. Rxc6 {[%emt 0:00:00]} Rxc6 {[%emt 0:00:30]} 30. Bxd4 {[%emt 0:00:00]} b5 {[%emt 0:01:01]} 31. a3 {[%emt 0:00:14]} a4 {[%emt 0:00:19]} 32. g3 {[%emt 0:00:30]} b4 {[%emt 0:00:30]} 33. Kg2 {[%emt 0:00:30]} b3 {[%emt 0:00:30]} 34. Rh1 {[%emt 0:00:30]} Ke7 {[%emt 0:00:26]} 35. Rh8 {[%emt 0:00:22]} Rc4 {[%emt 0:01:09]} 36. Bf6+ {[%emt 0:00:09]} Ke6 {[%emt 0:00:27]} 37. Kf3 {[%emt 0:00:48]} Kd6 {[%emt 0:00:33]} 38. Rd8+ {[%emt 0:00:31]} Ke6 {[%emt 0:00:26]} 39. Bc3 {[%emt 0:01:44]} Ke7 {[%emt 0:00:27]} 40. Rxd5 {[%emt 0:00:25]} 1-0

[Event "Slovakia Chess Open 2024"]
[Site "Modra"]
[Date "2024.03.01"]
[Round "1.14"]
[White "Li, Geng Hui"]
[Black "Pisarcik, Richard"]
[Result "1-0"]
[ECO "D37"]
[WhiteElo "1555"]
[BlackElo "1855"]
[Annotator "NA RC"]
[PlyCount "83"]
[EventDate "2024.02.29"]
[EventType "swiss"]
[EventCountry "SVK"]
[SourceTitle "playchess.com"]
[Source "ChessBase"]
[SourceQuality "1"]
[TimeControl "5400+30"]

1. d4 {[%emt 0:00:23]} d5 {[%emt 0:00:29]} 2. c4 {[%emt 0:00:07]} e6 {[%emt 0:00:04]} 3. Nc3 {[%emt 0:00:18]} Nf6 {[%emt 0:00:06]} 4. Nf3 {[%emt 0:00:38]} Be7 {[%emt 0:00:33]} 5. Bf4 {[%emt 0:01:26]} h6 {[%emt 0:00:29]} 6. e3 {[%emt 0:00:16]} b6 {[%emt 0:00:10]} 7. Be2 {[%emt 0:01:29]} Bb7 {[%emt 0:00:20]} 8. Rc1 {[%emt 0:05:21]} O-O {[%emt 0:01:36]} 9. O-O {[%emt 0:00:18]} c5 {[%emt 0:00:20]} 10. a3 {[%emt 0:04:43]} Nc6 {[%emt 0:04:18]} 11. Ne5 {[%emt 0:07:06]} Rc8 {[%emt 0:04:36]} 12. Nb1 {[%emt 0:18:18]} cxd4 {[%emt 0:03:18]} 13. exd4 {[%emt 0:05:44]} Nxe5 {[%emt 0:03:55]} 14. dxe5 {[%emt 0:05:12]} Ne4 {[%emt 0:02:04]} 15. Nd2 {[%emt 0:05:22]} Bg5 {[%emt 0:02:35]} 16. Bxg5 {[%emt 0:02:44]} Qxg5 {[%emt 0:00:14]} 17. Nf3 {[%emt 0:01:51]} Qg6 {[%emt 0:02:37]} 18. Nh4 {[%emt 0:02:38]} Qg5 {[%emt 0:01:25]} 19. Nf3 {[%emt 0:00:40]} Qf5 {[%emt 0:01:38]} 20. Qd4 {[%emt 0:03:33]} Rfd8 {[%emt 0:03:00]} 21. cxd5 {[%emt 0:10:50]} Rxc1 {[%emt 0:02:24]} 22. Rxc1 {[%emt 0:00:15]} Rxd5 {[%emt 0:00:40]} 23. Qa4 {[%emt 0:02:33]} Rxe5 {[%emt 0:03:01]} 24. Bd3 {[%emt 0:09:55]} g6 {[%emt 0:05:21]} 25. Qxa7 {[%emt 0:01:16]} Qf4 {[%emt 0:24:22]} 26. Rd1 {[%emt 0:02:34]} Rd5 {[%emt 0:02:18]} 27. Qxb7 {[%emt 0:00:33]} Rxd3 {[%emt 0:00:12]} 28. Qc8+ {[%emt 0:00:17]} Kh7 {[%emt 0:01:56]} 29. Rxd3 {[%emt 0:00:08]} g5 {[%emt 0:00:46]} 30. Qc2 {[%emt 0:00:37]} Kg7 {[%emt 0:03:55]} 31. Rd4 {[%emt 0:00:32]} f5 {[%emt 0:00:15]} 32. Rd7+ {[%emt 0:00:19]} Kg6 {[%emt 0:01:11]} 33. Qc8 {[%emt 0:00:12]} Nf6 {[%emt 0:00:47]} 34. Rd1 {[%emt 0:00:37]} e5 {[%emt 0:05:56]} 35. Qe6 {[%emt 0:00:32]} Qa4 {[%emt 0:02:57]} 36. Rf1 {[%emt 0:00:43]} g4 {[%emt 0:00:51]} 37. Nxe5+ {[%emt 0:00:08]} Kg5 {[%emt 0:00:09]} 38. Nf7+ {[%emt 0:00:17]} Kg6 {[%emt 0:00:22]} 39. Nd6 {[%emt 0:00:15]} Qd4 {[%emt 0:02:32]} 40. Qxf5+ {[%emt 0:00:19]} Kg7 {[%emt 0:00:33]} 41. Qe6 {[%emt 0:01:01]} Kg6 {[%emt 0:00:56]} 42. Ne8 {[%emt 0:00:35]} 1-0

[Event "Slovakia Chess Open 2024"]
[Site "Modra"]
[Date "2024.03.01"]
[Round "1.15"]
[White "Bucor, Mark"]
[Black "Hanzel, Richard"]
[Result "1-0"]
[ECO "D45"]
[WhiteElo "1852"]
[BlackElo "1531"]
[Annotator "NA RC"]
[PlyCount "55"]
[EventDate "2024.02.29"]
[EventType "swiss"]
[EventCountry "SVK"]
[SourceTitle "playchess.com"]
[Source "ChessBase"]
[SourceQuality "1"]
[TimeControl "5400+30"]

1. c4 {[%emt 0:00:21]} c6 {[%emt 0:00:27]} 2. Nf3 {[%emt 0:00:54]} d5 {[%emt 0:00:14]} 3. d4 {[%emt 0:00:21]} Nf6 {[%emt 0:00:08]} 4. Nc3 {[%emt 0:01:25]} e6 {[%emt 0:00:26]} 5. e3 {[%emt 0:02:06]} Nbd7 {[%emt 0:00:06]} 6. Be2 {[%emt 0:00:12]} dxc4 {[%emt 0:00:22]} 7. a4 {[%emt 0:02:01]} Be7 {[%emt 0:03:14]} 8. Bxc4 {[%emt 0:00:16]} Nd5 {[%emt 0:02:08]} 9. O-O {[%emt 0:03:05]} O-O {[%emt 0:01:22]} 10. Qe2 {[%emt 0:07:00]} Nxc3 {[%emt 0:06:56]} 11. bxc3 {[%emt 0:00:12]} Nb6 {[%emt 0:04:43]} 12. Bd3 {[%emt 0:00:09]} h6 {[%emt 0:05:31]} 13. Ne5 {[%emt 0:05:42]} Nd7 {[%emt 0:08:16]} 14. f4 {[%emt 0:02:52]} Bd6 {[%emt 0:04:38]} 15. Bd2 {[%emt 0:04:43]} Bxe5 {[%emt 0:07:10]} 16. fxe5 {[%emt 0:00:16]} b6 {[%emt 0:00:59]} 17. Rf3 {[%emt 0:05:52]} f6 {[%emt 0:05:27]} 18. exf6 {[%emt 0:01:09]} Rxf6 {[%emt 0:01:57]} 19. Rxf6 {[%emt 0:01:45]} Nxf6 {[%emt 0:00:35]} 20. e4 {[%emt 0:00:48]} Qe7 {[%emt 0:07:49]} 21. e5 {[%emt 0:00:36]} Nd7 {[%emt 0:00:48]} 22. Qe4 {[%emt 0:01:18]} Nf8 {[%emt 0:01:41]} 23. Bc1 {[%emt 0:00:10]} Bb7 {[%emt 0:02:24]} 24. Qg4 {[%emt 0:02:42]} g5 {[%emt 0:05:40]} 25. Qh5 {[%emt 0:07:33]} Qg7 {[%emt 0:01:11]} 26. Ba3 {[%emt 0:01:44]} Rd8 {[%emt 0:03:50]} 27. Rf1 {[%emt 0:05:06]} Nd7 {[%emt 0:04:14]} 28. Bg6 {[%emt 0:01:12]} 1-0

[Event "Slovakia Chess Open 2024"]
[Site "Modra"]
[Date "2024.03.01"]
[Round "1.16"]
[White "Mruskovic, Ondrej"]
[Black "Petrik, Matus"]
[Result "0-1"]
[ECO "B47"]
[WhiteElo "1510"]
[BlackElo "1812"]
[Annotator "NA RC"]
[PlyCount "62"]
[EventDate "2024.02.29"]
[EventType "swiss"]
[EventCountry "SVK"]
[SourceTitle "playchess.com"]
[Source "ChessBase"]
[SourceQuality "1"]
[TimeControl "5400+30"]

1. e4 {[%emt 0:00:15]} c5 {[%emt 0:16:06]} 2. Nf3 {[%emt 0:00:11]} e6 {[%emt 0:00:05]} 3. Nc3 {[%emt 0:00:15]} Nc6 {[%emt 0:00:07]} 4. d4 {[%emt 0:00:08]} cxd4 {[%emt 0:00:05]} 5. Nxd4 {[%emt 0:00:09]} Qc7 {[%emt 0:00:02]} 6. g3 {[%emt 0:01:23]} a6 {[%emt 0:00:13]} 7. Bg2 {[%emt 0:00:48]} Nf6 {[%emt 0:00:12]} 8. O-O {[%emt 0:00:59]} Bc5 {[%emt 0:01:08]} 9. Nf3 {[%emt 0:00:55]} O-O {[%emt 0:01:23]} 10. Qd3 {[%emt 0:03:02]} b5 {[%emt 0:05:50]} 11. Be3 {[%emt 0:02:13]} Nb4 {[%emt 0:00:53]} 12. Bf4 {[%emt 0:05:01]} e5 {[%emt 0:16:21]} 13. Bxe5 {[%emt 0:02:23]} d6 {[%emt 0:01:09]} 14. Bxd6 {[%emt 0:03:18]} Bxd6 {[%emt 0:00:28]} 15. Qd2 {[%emt 0:00:57]} Bb7 {[%emt 0:01:00]} 16. a3 {[%emt 0:01:15]} Nc6 {[%emt 0:01:05]} 17. Rad1 {[%emt 0:01:09]} Rad8 {[%emt 0:00:39]} 18. Qe3 {[%emt 0:02:30]} Rfe8 {[%emt 0:04:41]} 19. Rfe1 {[%emt 0:01:01]} Ne5 {[%emt 0:04:14]} 20. Nxe5 {[%emt 0:06:06]} Bxe5 {[%emt 0:06:08]} 21. Rxd8 {[%emt 0:03:05]} Rxd8 {[%emt 0:00:23]} 22. Nd5 {[%emt 0:01:27]} Nxd5 {[%emt 0:05:03]} 23. exd5 {[%emt 0:01:17]} Bd6 {[%emt 0:00:05]} 24. Re2 {[%emt 0:05:21]} g6 {[%emt 0:05:54]} 25. Qd4 {[%emt 0:01:11]} Bf8 {[%emt 0:02:39]} 26. b4 {[%emt 0:01:21]} Bg7 {[%emt 0:02:44]} 27. Qe3 {[%emt 0:01:58]} Bxd5 {[%emt 0:01:46]} 28. Bxd5 {[%emt 0:00:54]} Rxd5 {[%emt 0:00:03]} 29. Qe8+ {[%emt 0:01:23]} Bf8 {[%emt 0:00:05]} 30. Qa8 {[%emt 0:00:44]} Rd1+ {[%emt 0:01:19]} 31. Kg2 {[%emt 0:00:13]} Qd6 {[%emt 0:00:45]} 0-1

[Event "Slovakia Chess Open 2024"]
[Site "Modra"]
[Date "2024.03.01"]
[Round "1.17"]
[White "Pietrucha, Jaroslaw"]
[Black "Gecik Jergus"]
[Result "1-0"]
[ECO "C44"]
[WhiteElo "1781"]
[BlackElo "1000"]
[Annotator "NA RC"]
[PlyCount "81"]
[EventDate "2024.02.29"]
[EventType "swiss"]
[EventCountry "SVK"]
[SourceTitle "playchess.com"]
[Source "ChessBase"]
[SourceQuality "1"]
[TimeControl "5400+30"]

1. e4 {[%emt 0:32:20]} e5 {[%emt 0:00:27]} 2. Nf3 {[%emt 0:05:02]} Nc6 {[%emt 0:00:46]} 3. d4 {[%emt 0:00:48]} Bb4+ {[%emt 0:01:21]} 4. c3 {[%emt 0:01:00]} Ba5 {[%emt 0:00:59]} 5. dxe5 {[%emt 0:01:29]} d6 {[%emt 0:02:32]} 6. exd6 {[%emt 0:02:45]} cxd6 {[%emt 0:02:16]} 7. h3 {[%emt 0:01:16]} Nf6 {[%emt 0:00:52]} 8. Bd3 {[%emt 0:00:38]} d5 {[%emt 0:01:36]} 9. exd5 {[%emt 0:01:19]} Nxd5 {[%emt 0:01:13]} 10. O-O {[%emt 0:01:16]} O-O {[%emt 0:01:42]} 11. Re1 {[%emt 0:07:15]} Re8 {[%emt 0:03:23]} 12. Rxe8+ {[%emt 0:04:01]} Qxe8 {[%emt 0:00:16]} 13. Bxh7+ {[%emt 0:04:54]} Kxh7 {[%emt 0:02:30]} 14. Qxd5 {[%emt 0:04:43]} Be6 {[%emt 0:00:30]} 15. Ng5+ {[%emt 0:00:30]} Kg8 {[%emt 0:01:10]} 16. Nxe6 {[%emt 0:01:55]} fxe6 {[%emt 0:02:14]} 17. Qb3 {[%emt 0:01:08]} Qd7 {[%emt 0:00:30]} 18. Bf4 {[%emt 0:06:33]} Rf8 {[%emt 0:04:18]} 19. Bg3 {[%emt 0:00:30]} Qd5 {[%emt 0:08:37]} 20. Qxd5 {[%emt 0:01:48]} exd5 {[%emt 0:00:30]} 21. Kf1 {[%emt 0:00:30]} Re8 {[%emt 0:00:30]} 22. Na3 {[%emt 0:00:30]} a6 {[%emt 0:00:30]} 23. Nc2 {[%emt 0:00:30]} Re7 {[%emt 0:01:37]} 24. Rd1 {[%emt 0:01:10]} d4 {[%emt 0:00:44]} 25. Nxd4 {[%emt 0:00:31]} Nxd4 {[%emt 0:00:30]} 26. Rxd4 {[%emt 0:00:44]} Rc7 {[%emt 0:02:18]} 27. Ke2 {[%emt 0:00:59]} Re7+ {[%emt 0:00:57]} 28. Kd2 {[%emt 0:00:30]} Bc7 {[%emt 0:00:31]} 29. Bxc7 {[%emt 0:01:52]} Rxc7 {[%emt 0:01:43]} 30. Ke2 {[%emt 0:00:30]} Re7+ {[%emt 0:00:30]} 31. Kd2 {[%emt 0:00:30]} Rf7 {[%emt 0:00:30]} 32. f3 {[%emt 0:00:30]} Rc7 {[%emt 0:00:30]} 33. Ke2 {[%emt 0:00:30]} Re7+ {[%emt 0:00:30]} 34. Kf2 {[%emt 0:00:30]} Kf7 {[%emt 0:00:30]} 35. Rd5 {[%emt 0:00:30]} Rc7 {[%emt 0:00:30]} 36. Rf5+ {[%emt 0:00:30]} Kg8 {[%emt 0:00:30]} 37. Re5 {[%emt 0:00:30]} Rd7 {[%emt 0:00:30]} 38. g4 {[%emt 0:00:30]} Rd2+ {[%emt 0:02:20]} 39. Re2 {[%emt 0:00:51]} Rd1 {[%emt 0:00:30]} 40. h4 {[%emt 0:00:30]} Kh7 {[%emt 0:00:30]} 41. h5 {[%emt 0:00:29]} 1-0

[Event "Slovakia Chess Open 2024"]
[Site "Modra"]
[Date "2024.03.01"]
[Round "1.18"]
[White "Lepejova Viola"]
[Black "Palka, Miroslav"]
[Result "0-1"]
[ECO "B70"]
[WhiteElo "1000"]
[BlackElo "1780"]
[Annotator "NA RC"]
[PlyCount "70"]
[EventDate "2024.02.29"]
[EventType "swiss"]
[EventCountry "SVK"]
[SourceTitle "playchess.com"]
[Source "ChessBase"]
[SourceQuality "1"]
[TimeControl "5400+30"]

1. e4 {[%emt 0:00:05]} c5 {[%emt 0:00:07]} 2. Nf3 {[%emt 0:00:11]} d6 {[%emt 0:00:08]} 3. d4 {[%emt 0:00:27]} cxd4 {[%emt 0:00:06]} 4. Nxd4 {[%emt 0:00:10]} Nf6 {[%emt 0:00:07]} 5. Bd3 {[%emt 0:00:22]} g6 {[%emt 0:00:27]} 6. O-O {[%emt 0:00:28]} Bg7 {[%emt 0:00:06]} 7. Nc3 {[%emt 0:01:36]} O-O {[%emt 0:00:09]} 8. Bc4 {[%emt 0:02:14]} Nc6 {[%emt 0:00:29]} 9. Be3 {[%emt 0:02:07]} Ng4 {[%emt 0:01:44]} 10. h3 {[%emt 0:02:47]} Nxe3 {[%emt 0:00:12]} 11. fxe3 {[%emt 0:00:16]} Ne5 {[%emt 0:00:16]} 12. Nf3 {[%emt 0:01:21]} Nxc4 {[%emt 0:00:13]} 13. Qc1 {[%emt 0:00:54]} Be6 {[%emt 0:01:45]} 14. Nd2 {[%emt 0:02:39]} Nxe3 {[%emt 0:02:03]} 15. Rf3 {[%emt 0:00:12]} Bxc3 {[%emt 0:02:11]} 16. bxc3 {[%emt 0:00:14]} Nc4 {[%emt 0:00:09]} 17. Rb1 {[%emt 0:01:33]} b6 {[%emt 0:00:17]} 18. Rb4 {[%emt 0:00:14]} Ne5 {[%emt 0:00:17]} 19. Rg3 {[%emt 0:00:49]} Rc8 {[%emt 0:00:59]} 20. a4 {[%emt 0:02:39]} Qc7 {[%emt 0:00:26]} 21. Nb1 {[%emt 0:00:36]} Nc4 {[%emt 0:01:58]} 22. h4 {[%emt 0:01:16]} d5 {[%emt 0:00:38]} 23. Re3 {[%emt 0:01:04]} Nxe3 {[%emt 0:00:12]} 24. Qxe3 {[%emt 0:00:09]} Qc5 {[%emt 0:01:14]} 25. Qd4 {[%emt 0:00:44]} dxe4 {[%emt 0:00:23]} 26. Kh1 {[%emt 0:00:56]} f5 {[%emt 0:00:14]} 27. Rb5 {[%emt 0:01:15]} Qxd4 {[%emt 0:00:11]} 28. cxd4 {[%emt 0:00:08]} Rxc2 {[%emt 0:00:12]} 29. Na3 {[%emt 0:01:12]} Ra2 {[%emt 0:00:22]} 30. d5 {[%emt 0:00:43]} Bd7 {[%emt 0:00:40]} 31. Rb3 {[%emt 0:00:27]} Rc8 {[%emt 0:00:06]} 32. h5 {[%emt 0:01:30]} f4 {[%emt 0:00:07]} 33. Nb5 {[%emt 0:01:03]} Rc1+ {[%emt 0:00:19]} 34. Kh2 {[%emt 0:00:08]} Raa1 {[%emt 0:00:21]} 35. g3 {[%emt 0:00:39]} Rc2# {[%emt 0:00:13]} 0-1

[Event "Slovakia Chess Open 2024"]
[Site "Modra"]
[Date "2024.03.02"]
[Round "2.1"]
[White "Novomeska, Karin"]
[Black "Krivoborodov, Egor"]
[Result "0-1"]
[ECO "A65"]
[WhiteElo "1929"]
[BlackElo "2555"]
[Annotator "RC"]
[PlyCount "70"]
[EventDate "2024.02.29"]
[EventType "swiss"]
[EventCountry "SVK"]
[SourceTitle "playchess.com"]
[Source "ChessBase"]
[SourceQuality "1"]
[TimeControl "5400+30"]

1. d4 {[%emt 0:00:06]} Nf6 {[%emt 0:00:11]} 2. c4 {[%emt 0:00:06]} c5 {[%emt 0:00:04]} 3. d5 {[%emt 0:00:52]} e6 {[%emt 0:00:12]} 4. Nc3 {[%emt 0:00:38]} exd5 {[%emt 0:00:04]} 5. cxd5 {[%emt 0:00:08]} d6 {[%emt 0:00:05]} 6. e4 {[%emt 0:00:26]} g6 {[%emt 0:00:05]} 7. Bb5+ {[%emt 0:00:48]} Nbd7 {[%emt 0:03:17]} 8. Be2 {[%emt 0:03:15]} a6 {[%emt 0:19:20]} 9. a4 {[%emt 0:12:31]} Qe7 {[%emt 0:02:19]} 10. Qc2 {[%emt 0:05:11]} Bg7 {[%emt 0:01:24]} 11. f4 {[%emt 0:04:47]} O-O {[%emt 0:02:39]} 12. Nf3 {[%emt 0:12:19]} Re8 {[%emt 0:02:33]} 13. Nd2 {[%emt 0:04:27]} Ng4 {[%emt 0:04:34]} 14. Bxg4 {[%emt 0:12:08]} Qh4+ {[%emt 0:00:40]} 15. Kf1 {[%emt 0:03:39]} Qxg4 {[%emt 0:00:14]} 16. Nc4 {[%emt 0:02:10]} Bf8 {[%emt 0:01:05]} 17. Qf2 {[%emt 0:17:48]} f5 {[%emt 0:14:56]} 18. h3 {[%emt 0:10:44]} Qh5 {[%emt 0:00:23]} 19. Be3 {[%emt 0:02:13]} Rb8 {[%emt 0:16:50]} 20. Ne2 {[%emt 0:05:06]} fxe4 {[%emt 0:08:31]} 21. Rd1 {[%emt 0:00:08]} Qf5 {[%emt 0:01:00]} 22. g4 {[%emt 0:01:08]} Qf7 {[%emt 0:00:09]} 23. f5 {[%emt 0:00:40]} b5 {[%emt 0:02:08]} 24. axb5 {[%emt 0:00:21]} axb5 {[%emt 0:00:05]} 25. Na5 {[%emt 0:00:30]} Ne5 {[%emt 0:00:19]} 26. Nc6 {[%emt 0:00:25]} Nxc6 {[%emt 0:04:29]} 27. dxc6 {[%emt 0:00:02]} Rb6 {[%emt 0:00:01]} 28. Nf4 {[%emt 0:01:09]} Rxc6 {[%emt 0:00:33]} 29. Nd5 {[%emt 0:00:36]} gxf5 {[%emt 0:01:27]} 30. gxf5 {[%emt 0:00:04]} Re5 {[%emt 0:00:07]} 31. Qg3+ {[%emt 0:00:45]} Kh8 {[%emt 0:00:03]} 32. Nf4 {[%emt 0:00:41]} Rxf5 {[%emt 0:00:52]} 33. Rg1 {[%emt 0:00:30]} d5 {[%emt 0:03:25]} 34. Rd2 {[%emt 0:00:36]} d4 {[%emt 0:01:17]} 35. Rdg2 {[%emt 0:00:30]} Rg6 {[%emt 0:00:16]} 0-1

[Event "Slovakia Chess Open 2024"]
[Site "Modra"]
[Date "2024.03.02"]
[Round "2.2"]
[White "Bochnicka, Vladimir"]
[Black "Melih, Mario"]
[Result "1-0"]
[ECO "C54"]
[WhiteElo "2413"]
[BlackElo "1930"]
[Annotator "RC"]
[PlyCount "99"]
[EventDate "2024.02.29"]
[EventType "swiss"]
[EventCountry "SVK"]
[SourceTitle "playchess.com"]
[Source "ChessBase"]
[SourceQuality "1"]
[TimeControl "5400+30"]

1. e4 {[%emt 0:00:05]} e5 {[%emt 0:00:12]} 2. Nf3 {[%emt 0:00:04]} Nc6 {[%emt 0:00:09]} 3. Bc4 {[%emt 0:00:13]} Bc5 {[%emt 0:00:14]} 4. c3 {[%emt 0:00:07]} Nf6 {[%emt 0:00:27]} 5. d3 {[%emt 0:00:08]} d6 {[%emt 0:03:24]} 6. Nbd2 {[%emt 0:00:08]} a6 {[%emt 0:00:37]} 7. Bb3 {[%emt 0:00:48]} O-O {[%emt 0:00:49]} 8. O-O {[%emt 0:01:09]} Ba7 {[%emt 0:01:10]} 9. h3 {[%emt 0:00:14]} h6 {[%emt 0:01:13]} 10. Re1 {[%emt 0:01:08]} Re8 {[%emt 0:01:32]} 11. Nf1 {[%emt 0:00:47]} Be6 {[%emt 0:05:19]} 12. Ng3 {[%emt 0:01:48]} d5 {[%emt 0:03:26]} 13. Qe2 {[%emt 0:03:22]} Qd7 {[%emt 0:05:35]} 14. Bc2 {[%emt 0:03:11]} Rad8 {[%emt 0:03:04]} 15. Kh2 {[%emt 0:00:29]} b5 {[%emt 0:10:58]} 16. d4 {[%emt 0:11:40]} dxe4 {[%emt 0:10:26]} 17. Nxe4 {[%emt 0:00:16]} Nxe4 {[%emt 0:00:39]} 18. Qxe4 {[%emt 0:00:14]} f5 {[%emt 0:02:10]} 19. Qh4 {[%emt 0:00:18]} exd4 {[%emt 0:10:49]} 20. Rxe6 {[%emt 0:11:02]} Rxe6 {[%emt 0:00:51]} 21. Bxf5 {[%emt 0:00:57]} Qe7 {[%emt 0:06:01]} 22. Bxe6+ {[%emt 0:00:21]} Qxe6 {[%emt 0:00:14]} 23. cxd4 {[%emt 0:02:56]} Bxd4 {[%emt 0:00:45]} 24. Qg3 {[%emt 0:05:34]} Rf8 {[%emt 0:10:32]} 25. Nxd4 {[%emt 0:29:42]} Nxd4 {[%emt 0:01:11]} 26. Bd2 {[%emt 0:00:25]} Ne2 {[%emt 0:07:17]} 27. Qe3 {[%emt 0:01:45]} Qxe3 {[%emt 0:09:28]} 28. Bxe3 {[%emt 0:05:09]} Nf4 {[%emt 0:01:42]} 29. Bc5 {[%emt 0:00:55]} Rd8 {[%emt 0:01:26]} 30. Be3 {[%emt 0:00:30]} Ne6 {[%emt 0:00:30]} 31. b4 {[%emt 0:00:30]} Kf7 {[%emt 0:00:30]} 32. a4 {[%emt 0:02:16]} c6 {[%emt 0:02:53]} 33. a5 {[%emt 0:00:24]} Rc8 {[%emt 0:00:21]} 34. Rc1 {[%emt 0:00:27]} Ke7 {[%emt 0:00:30]} 35. f4 {[%emt 0:00:11]} Nf8 {[%emt 0:00:43]} 36. Bc5+ {[%emt 0:00:35]} Kf7 {[%emt 0:00:26]} 37. Rd1 {[%emt 0:00:29]} Re8 {[%emt 0:00:55]} 38. Rd6 {[%emt 0:00:53]} Rc8 {[%emt 0:00:15]} 39. f5 {[%emt 0:00:11]} Kg8 {[%emt 0:00:43]} 40. Kg3 {[%emt 0:00:18]} Kf7 {[%emt 0:00:16]} 41. Kf4 {[%emt 0:00:11]} Kg8 {[%emt 0:00:43]} 42. g4 {[%emt 0:00:07]} Kf7 {[%emt 0:00:30]} 43. h4 {[%emt 0:00:06]} Kg8 {[%emt 0:00:34]} 44. g5 {[%emt 0:00:05]} hxg5+ {[%emt 0:00:12]} 45. hxg5 {[%emt 0:00:06]} Kf7 {[%emt 0:00:42]} 46. g6+ {[%emt 0:00:40]} Ke8 {[%emt 0:00:30]} 47. Kg5 {[%emt 0:02:26]} Nd7 {[%emt 0:00:34]} 48. Re6+ {[%emt 0:00:05]} Kd8 {[%emt 0:00:16]} 49. Be7+ {[%emt 0:00:17]} Kc7 {[%emt 0:00:40]} 50. Bd6+ {[%emt 0:00:05]} 1-0